{"text_format":"1","workbook":"xlsx","n_sheets":4,"sheets":["Notice formulaire","Formulaire RJD solde _Public ","Formulaire RJD interm _Entr ","Formulaire RJD solde _Entr "],"not_rendered":{"charts":0,"images":3,"macros":1,"external_links":0,"defined_names":8,"comments":1,"pivot_tables":0},"unopened":[],"bounds":{"document_bytes":16777216,"sheet_cells":100000,"rows_first":2000,"rows_last":500,"rows_between":2000,"halvings":0,"cell_chars":16384,"cell_head_chars":4096},"cells_cut":0,"cells_raw":0,"read":"whole","date_system":"1900"}

{"sheet":"Notice formulaire","index":0,"n_rows":21,"n_cols":12,"rows_kept":21,"cut":false,"hidden":false,"merged":[[0,0,0,11]]}
["Relevé des dépenses afférentes à l'acte attributif"]
[]
[]
[]
[]
[]
[]
[]
[]
[]
[]
[]
[]
[]
[]
[]
[]
[]
[null,null,null,null,null,null,null,null,null,null,null,true]
[null,null,null,null,null,null,null,null,null,null,null,true]
[null,null,null,null,null,null,null,null,null,null,null,false]

{"sheet":"Formulaire RJD solde _Public ","index":1,"n_rows":158,"n_cols":22,"rows_kept":158,"cut":false,"hidden":false,"merged":[[114,0,126,0],[135,0,147,0],[145,1,145,2],[145,3,145,4],[145,5,145,7],[146,1,146,2],[146,3,146,4],[146,5,146,7],[147,1,147,2],[147,3,147,4],[147,5,147,7],[136,1,136,2],[137,1,137,2],[138,1,138,2],[136,3,136,4],[137,3,137,4],[138,3,138,4],[136,5,136,7],[137,5,137,7],[138,5,138,7],[139,1,139,2],[134,3,134,4],[134,5,134,7],[135,3,135,4],[0,2,0,9],[124,1,124,2],[125,1,125,2],[6,5,6,8],[63,1,63,2],[64,1,64,2],[122,1,122,2],[123,1,123,2],[65,1,65,2],[66,1,66,2],[70,1,70,2],[48,1,48,2],[52,3,52,5],[53,3,53,5],[54,3,54,5],[57,3,57,5],[42,1,42,2],[43,1,43,2],[74,1,74,2],[3,6,3,7],[12,6,12,8],[15,8,16,8],[7,5,7,8],[5,5,5,8],[51,3,51,5],[49,1,49,2],[50,1,50,2],[51,1,51,2],[15,4,16,4],[15,5,16,5],[42,3,42,5],[43,3,43,5],[44,3,44,5],[41,1,41,2],[38,0,38,9],[31,4,32,4],[29,1,29,4],[15,6,16,6],[41,3,41,5],[48,3,48,5],[49,3,49,5],[44,1,44,2],[15,2,15,3],[45,1,45,5],[50,3,50,5],[34,4,35,4],[15,7,16,7],[161,7,161,9],[151,6,151,8],[122,3,122,7],[85,3,85,4],[78,6,79,6],[78,7,78,9],[78,5,79,5],[75,1,75,7],[78,1,79,2],[80,3,80,4],[89,9,100,9],[126,3,126,7],[127,3,127,7],[128,3,128,7],[82,1,82,2],[100,3,100,7],[103,3,103,7],[123,3,123,7],[124,3,124,7],[125,3,125,7],[104,3,104,7],[107,3,107,7],[113,3,113,7],[114,3,114,7],[66,3,66,6],[67,3,67,6],[68,3,68,6],[82,3,82,4],[83,1,83,2],[83,3,83,4],[84,1,84,2],[84,3,84,4],[89,1,89,2],[78,3,79,4],[69,3,69,6],[70,3,70,6],[71,3,71,6],[72,3,72,6],[73,3,73,6],[74,3,74,6],[89,3,89,6],[71,1,71,2],[72,1,72,2],[73,1,73,2],[85,1,85,2],[80,1,80,2],[55,3,55,5],[56,3,56,5],[58,1,58,2],[58,3,58,5],[59,1,59,2],[59,3,59,5],[63,3,63,6],[64,3,64,6],[65,3,65,6],[60,1,60,5],[52,1,52,2],[53,1,53,2],[54,1,54,2],[67,1,67,2],[68,1,68,2],[69,1,69,2],[57,1,57,2],[55,1,55,2],[56,1,56,2],[151,1,151,3],[113,1,113,2],[114,1,114,2],[115,1,115,2],[116,1,116,2],[118,1,118,2],[117,1,117,2],[116,3,116,7],[118,3,118,7],[119,3,119,7],[126,1,126,2],[127,1,127,2],[117,3,117,7],[140,3,140,7],[143,1,143,2],[143,3,143,4],[143,5,143,7],[144,1,144,2],[144,3,144,4],[144,5,144,7],[148,1,148,2],[148,3,148,4],[148,5,148,7],[149,3,149,7],[92,1,92,2],[93,1,93,2],[94,1,94,2],[95,1,95,2],[96,1,96,2],[86,1,86,4],[81,1,81,2],[81,3,81,4],[90,1,90,2],[90,3,90,6],[91,3,91,6],[92,3,92,6],[93,3,93,6],[94,3,94,6],[95,3,95,6],[96,3,96,6],[91,1,91,2],[135,5,135,7],[139,3,139,4],[139,5,139,7],[115,3,115,7],[97,3,97,6],[98,3,98,6],[99,3,99,6],[105,1,105,2],[105,3,105,7],[106,1,106,2],[106,3,106,7],[134,1,134,2],[135,1,135,2],[99,1,99,2],[103,1,103,2],[104,1,104,2],[98,1,98,2],[97,1,97,2]]}
[null,null,"Relevé des dépenses afférentes à l'acte attributif"]
[null,null,null,null,null,null,null,null,null,null,null,null,null,null,null,null,null,null,"Type relevé"]
[null,null,null,null,null,null,null,null,null,null,null,null,null,null,null,null,null,null,"SOLDE"]
[null,null,null,null,null,"Type de relevé de dépenses : ","SOLDE"]
[]
[null,null,null,"Acronyme du projet : ",null,null,null,null,null,null,null,null,"Laboratoire public"]
[null,null,null,"Bénéficiaire de la convention : ",null,null,null,null,null,null,null,null,"Fondation"]
[null,null,null,"N° de l'acte attributif : ",null,null,null,null,null,null,null,null,"Divers public"]
[null,null,null,"Période du relevé de dépenses  :",null,"Date début administrative",null,"Date fin scientifique"]
[null,null,null,null,null,null,null,null,null,null,null,null,null,null,null,"Genre","Titre","Catégorie de partenaire","Catégorie budgétaire","Taux de frais",null,"Type unité"]
[null,null,null,"Date du présent relevé : ",null,null,null,null,null,null,null,null,null,null,"Coût marginal","F","DR",null,{"$f":"IF(#REF!=\"Coût marginal\",1,2)","v":{"$error":"#REF!"}},null,null,"EA "]
[]
[null,null,null,"Catégorie de partenaire",null,null,"Coût Marginal"]
[]
["RELEVE RECAPITULATIF DES DEPENSES PAR POSTES",null,null,null,null,null,null,null,null,null,null,null,null,null,null,null,"MC","Laboratoire Public","Cat 2",1.04,null,"ERTint"]
[null,null,"Personnels",null,{"$f":"A63","v":"Matériels et instruments"},{"$f":"A78","v":"Bâtiments et terrains"},{"$f":"A89","v":"Prestations de service/DPI"},{"$f":"A103","v":"Frais généraux non forfaitisés"},"Total",null,null,null,null,null,null,null,"MC","Fondation","Cat 3",2.04,null,"ERTint"]
[null,null,"Décharge d'enseignement","Personnels NON permanents avec financement ANR  ",null,null,null,null,null,null,null,null,null,null,null,null,null,"Divers public"]
[null,null,{"$f":"I46","v":0},{"$f":"I61","v":0},{"$f":"I76","v":0},{"$f":"J87","v":0},{"$f":"I101","v":0},{"$f":"I108","v":0},{"$f":"B18+C18+D18+E18+F18+G18+H18","v":0},null,null,null,null,null,null,null,"MC","Divers public","Cat 4",3.04,null,"ERTint"]
[null,null,null,null,null,null,null,null,null,null,null,null,null,null,null,null,"MC","Divers public","Cat 5",4.04,null,"ERTint"]
[null,null,null,null,null,null,null,null,null,null,null,null,null,null,null,null,"MC","Divers public","Cat 6",5.04,null,"ERTint"]
[null,null,null,"Frais d'environnement : Frais de la tutelle (10,5%)",0.105,{"$f":"IF(E21>10.5%,\"MAX 10,5%\",E21*(C18+D18+E18+F18+G18+H18))","v":0},null,"Coût déclaré (€)",{"$f":"IF(OR(E21>10.5%,E23>2.5%),0,(C18+D18+E18+F18+G18+H18)+F25)","v":0},null,null,null,null,null,null,null,"MC","Divers public","Cat 7",6.04,null,"ERTint"]
[null,null,null,null,null,null,null,null,null,null,null,null,null,null,null,null,"MC","Divers public","Cat 8",7.04,null,"ERTint"]
[null,null,null,"Frais d'environnement : Frais de la structure de recherche (2,5%)",2.5000000000000001E-2,{"$f":"IF(E23>2.5%,\"MAX 2,5%\",E23*(C18+D18+E18+F18+G18+H18))","v":0},null,"Montant total des dépenses éligibles (€)",{"$f":"IF(I21=0,0,(C18+D18+E18+F18+G18+H18)+F25)","v":0},null,null,null,null,null,null,null,null,"PME autre que micro-entreprise",null,null,null,"INRA "]
[null,null,null,null,null,null,null,null,null,null,null,null,null,null,null,null,null,null,null,null,null,"UMR_D"]
[null,null,null,"Total des frais",null,{"$f":"IF(OR(F21=\"\",F21=\"MAX 10,5%\",F23=\"\",F23=\"MAX 2,5%\"),0,F21+F23)","v":0},null,"Taux d'aide demandé (%)",null,null,null,null,null,null,null,null,null,null,null,null,null,"IRD "]
[null,null,null,null,null,null,null,null,null,null,null,null,null,null,null,null,null,null,null,null,null,"UMR_E"]
[null,null,null,null,null,null,null,null,null,null,null,null,null,null,null,null,null,"sigle_naturejuridique (finir la liste par Autre)","Libelle_naturejuridique",null,null,"CEA"]
[null,null,null,null,null,null,null,null,null,null,null,null,null,null,null,null,null,"EPA","Etablissements publics à caractère administratif",null,null,"UMR_M"]
[null,null,null,null,null,null,null,null,null,null,null,null,null,null,null,null,null,"EPCSP","Etablissements publics à caractère scientifique, culturel et professionnel.",null,null,"IFREME"]
[null,"Application du taux d'aide au montant total des dépenses éligibles (€)",null,null,null,{"$f":"IF(I23=\"\",\"\",I25*I23)","v":0},null,null,null,null,null,null,null,null,null,null,null,"EPIC","Etablissements publics à caractère industriel et commercial",null,null,"UMR_C"]
[null,null,null,null,null,null,null,null,null,null,null,null,null,null,null,null,null,"EPST","Etablissements publics à caractère scientifique et technologique ",null,null,"UMR_I"]
[null,null,null,null,"dont",{"$f":"I129","v":0},"au titre de la facturation interne ",null,null,null,null,null,null,null,null,null,null,"GIP","Groupements d'intérêt public ",null,null,"INRIA"]
[null,null,null,null,null,{"$f":"I120","v":0},"au titre de la facturation entre partenaires ",null,null,null,null,null,null,null,null,null,null,"Fondation","",null,null,"UMR_F"]
[]
[null,null,null,null,"dont",{"$f":"I141","v":0},"au titre de la facturation liée à la publication scientifique"]
[null,null,null,null,null,{"$f":"I150","v":0},"au titre de la facturation liée aux données de la recherche"]
[]
[null,null,null,null,null,null,null,null,null,null,null,null,null,null,null,"SA","Société Anonyme",null,null,"ERM"]
["Détails des catégories de dépenses éligibles",null,null,null,null,null,null,null,null,null,null,null,null,null,null,"SARL","Société A Responsabilité Limitée",null,null,"U"]
[null,null,null,null,null,null,null,null,null,null,null,null,null,null,null,"SAS","Société Anonyme Simplifiée ",null,null,"EPI"]
["Décharge d'enseignement",null,null,null,null,null,null,null,null,null,null,null,null,null,null,"Autre"]
[null,"Catégorie de personnel",null,"Nom / Prénom",null,null,"Coût mensuel","Personne.mois","Coût total"]
[null,"JCJC",null,null,null,null,null,null,{"$f":"G43*H43","v":0}]
[null,null,null,null,null,null,null,null,{"$f":"G44*H44","v":0}]
[null,null,null,null,null,null,null,null,0]
[null,"Total",null,null,null,null,{"$f":"SUM(G43:G45)","v":0},0,{"$f":"SUM(I43:I45)","v":0}]
[]
["Personnels NON permanents avec financement ANR  "]
[null,"Catégorie de personnel",null,"Nom / Prénom",null,null,"Coût mensuel","Personne.mois","Coût total"]
[null,"Chercheur",null,null,null,null,null,null,{"$f":"G50*H50","v":0}]
[null,"Ingénieur de recherche",null,null,null,null,null,null,{"$f":"G51*H51","v":0}]
[null,"Ingénieur d'étude",null,null,null,null,null,null,0]
[null,"Technicien",null,null,null,null,null,null,0]
[null,"Doctorant",null,null,null,null,null,null,0]
[null,"Post doc",null,null,null,null,null,null,0]
[null,null,null,null,null,null,null,null,0]
[null,null,null,null,null,null,null,null,0]
[null,null,null,null,null,null,null,null,0]
[null,null,null,null,null,null,null,null,0]
[null,null,null,null,null,null,null,null,0]
[null,"Total",null,null,null,null,{"$f":"SUM(G50:G60)","v":0},{"$f":"SUM(H50:H60)","v":0},{"$f":"SUM(I50:I60)","v":0}]
[]
["Matériels et instruments"]
[null,"Nature de dépenses",null,"Description des dépenses",null,null,null,"Date d'acquisition","Montant(€)**"]
[null,"Acquisitions"]
[null,"Locations"]
[null,"Consommables « scientifiques » (liés à l’utilisation des instruments et matériels)"]
[null,"Coût d’adaptation ou d’évolution d’un matériel/instrument existant"]
[null,"Coût de maintenance /révision/ entretien"]
[null,"Coût de transport"]
[null,"Coût d’installation"]
[]
[]
[]
[null,"Autres à préciser"]
[null,"Total",null,null,null,null,null,null,{"$f":"SUM(I65:I75)","v":0}]
[]
["Bâtiments et terrains"]
[null,"Nature de dépenses",null,"Description des dépenses",null,"Montant (€)**","Date d'acquisition","Amortissement"]
[null,null,null,null,null,null,null,"Durée totale d'amortissement (mois)","Durée d'utilisation dans le projet (2) \n(mois)","Montant de l'amortissement (€)"]
[null,"Location de nouveaux locaux/terrains non existants préalablement au projet parmi les bâtiments et terrains du bénéficiaire)",null,null,null,null,null,null,null,{"$f":"IF(H81=\"\",0,F81*(I81/H81))","v":0}]
[null,"Aménagement de locaux/terrains préexistants",null,null,null,null,null,null,null,{"$f":"IF(H82=\"\",0,F82*(I82/H82))","v":0}]
[null,null,null,null,null,null,null,null,null,{"$f":"IF(H83=\"\",0,F83*(I83/H83))","v":0}]
[null,null,null,null,null,null,null,null,null,0]
[null,null,null,null,null,null,null,null,null,0]
[null,"Autres à préciser",null,null,null,null,null,null,null,{"$f":"IF(H86=\"\",0,F86*(I86/H86))","v":0}]
[null,"Total",null,null,null,{"$f":"SUM(F81:F86)","v":0},null,null,null,{"$f":"SUM(J81:J86)","v":0}]
[]
["Prestations de service/DPI",null,null,null,null,null,null,null,null,null,null,null,null,null,null,null,null,null,null,null,null,"Attention pas d'amortissements pour les publiques"]
[null,"Nom du fournisseur",null,"Description des prestations",null,null,null,"Date du service fait","Montant (€)**",{"$f":"IF(I101> F30*0.5,\"ALERTE : Plus de 50 % de l'aide calculée\",\" \")","v":" "}]
[]
[]
[]
[]
[]
[]
[]
[]
[]
[]
[null,null,null,"Total",null,null,null,null,{"$f":"SUM(I91:I100)","v":0}]
[]
["Frais généraux non forfaitisés"]
[null,"Nature de dépenses",null,"Description des dépenses",null,null,null,null,"Montant (€)**"]
[]
[]
[]
[null,null,null,"Total",null,null,null,null,{"$f":"SUM(I105:I107)","v":0}]
[]
["La facturation entre partenaire et interne concernent toutes les catégories de dépenses à l'exception des dépenses de personnels."]
["Ces deux rubriques \"facturation\" sont des données récapitulatives et ne seront pas comptabilisées dans les dépenses du projet si elles sont déclarées uniquement ci-dessous."]
[]
[null,"Facturation entre partenaire"]
[null,"Nom",null,"Prestations",null,null,null,null,"Montant (€)**"]
["Dont"]
[]
[]
[]
[]
[null,null,null,"Total",null,null,null,null,{"$f":"SUM(I115:I119)","v":0}]
[]
[null,"Facturation interne "]
[null,"Nom du partenaire",null,"Prestations",null,null,null,null,"Montant (€)**"]
[]
[]
[]
[]
[]
[null,null,null,"Total",null,null,null,null,{"$f":"SUM(I124:I128)","v":0}]
[]
["Ces deux rubriques \"facturation\" sont des données récapitulatives de dépenses déclarées dans les catégories de dépenses principales ci-dessus"]
["et ne seront pas comptabilisées dans les dépenses du projet si elles sont déclarées uniquement ci-dessous"]
[]
[null,"Facturation liée à la publication scientifique"]
[null,"Nom du fournisseur",null,"Nature de la dépense",null,"Description",null,null,"Montant (€)**"]
["Dont"]
[]
[]
[]
[]
[null,null,null,"Total",null,null,null,null,{"$f":"SUM(I136:I140)","v":0}]
[]
[null,"Facturation liée aux données de la recherche"]
[null,"Nom du fournisseur",null,"Nature de la dépense",null,"Description",null,null,"Montant (€)**"]
[]
[]
[]
[]
[]
[null,null,null,"Total",null,null,null,null,{"$f":"SUM(I145:I149)","v":0}]
[]
[null,"Signature originale de l'agent comptable*\n\n\n\n\n\n\nNom et qualité du signataire\nCachet du partenaire",null,null,null,null,"Signature originale de la personne habilitée à représenter\njuridiquement le partenaire*\n\n\n\n\n\nNom et qualité du signataire\nCachet du partenaire"]
[]
["NOTA : les documents justificatifs de dépenses sont conservés pendant 10 ans par le partenaire afin de pouvoir les présenter à tout contrôle de l'ANR."]
[]
[null,"Toutes les factures seront à justifier en cas d'audit "]
["(*) Représentant légal ou personne ayant reçu délégation de signature du représentant légal. Dans ce cas, préciser : \"Pour (qualité du représentant légal) et par délégation\"."]
["(**)  Montant incluant la TVA non récupérable."]

{"sheet":"Formulaire RJD interm _Entr ","index":2,"n_rows":47,"n_cols":13,"rows_kept":47,"cut":false,"hidden":false,"merged":[[30,5,39,7],[15,3,16,3],[15,5,16,5],[15,6,16,6],[15,7,16,7],[15,1,15,2],[0,0,0,1],[15,4,16,4],[5,4,5,7],[6,4,6,7],[7,4,7,7],[12,6,12,7],[0,2,0,7],[3,4,3,5]]}
[null,null,"Relevé des dépenses afférentes à l'acte attributif"]
[]
[]
[null,null,null,"Type de relevé de dépenses : ","INTERMEDIAIRE"]
[]
[null,null,"Acronyme du projet : "]
[null,null,"Bénéficiaire de la convention : ",null,null,null,null,null,null,null,null,null,"Divers privé"]
[null,null,"N° de l'acte attributif : ",null,null,null,null,null,null,null,null,null,"TPE / PME"]
[null,null,"Période du relevé de dépenses :",null,"Date début ",null,"Date fin",null,null,null,null,null,"Entreprise autre que TPE ou PME"]
[null,null,null,null,null,null,null,null,null,null,null,null,"Association"]
[null,null,"Date du présent relevé : "]
[]
[null,null,"Catégorie de partenaire",null,null,null,"Coût complet"]
[]
["RELEVE RECAPITULATIF DES DEPENSES PAR POSTES"]
[null,"Personnels ",null,"Matériels et instruments","Bâtiments et terrains","Prestations de service/DPI","Frais généraux non forfaitisés","Total"]
[null,"Personnels permanents ","Personnels NON permanents avec financement ANR  "]
[null,null,null,null,null,null,null,{"$f":"B18+C18+D18+E18+F18+G18","v":0}]
[]
[]
[]
[null,null,"Frais de personnel (Max 68%)",null,{"$f":"IF(D22>68%,\"MAX 68%\",D22*(B18+C18))","v":0},null,"Coût complet (€)",{"$f":"IF(OR(D22>68%,D24>7%),0,H18+E26)","v":0}]
[]
[null,null,"Autres dépenses(Max 7%)",null,{"$f":"IF(D24>7%,\"MAX 7%\",D24*(SUM(D18:G18)))","v":0},null,"Montant total des dépenses éligibles (€)",{"$f":"IF(H22=0,0,B18+C18+D18+E18+F18+G18+E26)","v":0}]
[]
[null,null,"Total des frais",null,{"$f":"IF(OR(E22=\"MAX 68%\",E24=\"MAX 7%\"),\"\",E22+E24)","v":0},null,"Taux d'aide demandé (%)"]
[]
[null,null,null,null,null,null,"Application du taux d'aide au montant total des dépenses éligibles (€)",{"$f":"H24*H26","v":0}]
[]
[]
[null,null,null,null,null,"Signature originale de la personne habilitée à représenter\njuridiquement le partenaire*\n\n\n\n\nNom et qualité du signataire\nCachet du partenaire"]
[]
[]
[]
[]
[]
[]
[]
[]
[]
[]
[]
[]
["NOTA : les documents justificatifs de dépenses sont conservés pendant 10 ans par le partenaire afin de pouvoir les présenter à tout contrôle de l'ANR."]
["Toutes les factures seront à justifier en cas d'audit "]
["(*) Représentant légal ou personne ayant reçu délégation de signature du représentant légal. Dans ce cas, préciser : \"Pour (qualité du représentant légal) et par délégation\"."]
["(**)  Montant incluant la TVA non récupérable."]

{"sheet":"Formulaire RJD solde _Entr ","index":3,"n_rows":171,"n_cols":13,"rows_kept":171,"cut":false,"hidden":false,"merged":[[147,0,159,0],[157,1,157,2],[157,3,157,4],[157,5,157,7],[158,1,158,2],[158,3,158,4],[158,5,158,7],[159,1,159,2],[159,3,159,4],[159,5,159,7],[150,5,150,7],[150,3,150,4],[150,1,150,2],[148,1,148,2],[148,3,148,4],[148,5,148,7],[149,1,149,2],[149,3,149,4],[149,5,149,7],[126,0,136,0],[0,2,0,10],[5,5,5,8],[6,5,6,8],[7,5,7,8],[90,8,90,10],[74,8,74,10],[54,1,54,5],[58,3,58,5],[135,4,135,7],[136,4,136,7],[15,1,15,3],[47,3,47,5],[53,3,53,5],[130,4,130,7],[32,3,33,3],[16,2,16,3],[43,3,43,5],[43,1,43,2],[44,1,44,2],[40,0,40,10],[15,7,16,7],[15,8,16,8],[32,4,33,4],[3,5,3,6],[138,1,138,3],[12,6,12,8],[136,1,136,3],[137,1,137,3],[134,4,134,7],[17,2,17,3],[15,4,16,4],[15,5,16,5],[44,3,44,5],[138,4,138,7],[90,7,91,7],[90,6,91,6],[78,4,78,5],[45,3,45,5],[46,3,46,5],[45,1,45,2],[46,1,46,2],[47,1,47,2],[53,1,53,2],[58,1,58,2],[48,1,48,2],[70,3,70,5],[59,1,59,2],[163,6,163,8],[101,9,112,9],[79,4,79,5],[130,1,130,3],[134,1,134,3],[135,1,135,3],[139,1,139,3],[139,4,139,7],[70,1,70,2],[116,4,116,7],[125,1,125,3],[108,1,108,3],[84,1,84,3],[84,4,84,5],[87,1,87,5],[129,4,129,7],[76,4,76,5],[126,1,126,3],[127,1,127,3],[116,1,116,3],[79,1,79,3],[67,1,67,2],[67,3,67,5],[68,1,68,2],[68,3,68,5],[48,3,48,5],[49,1,49,2],[49,3,49,5],[50,1,50,2],[50,3,50,5],[51,1,51,2],[51,3,51,5],[52,1,52,2],[52,3,52,5],[59,3,59,5],[60,3,60,5],[61,3,61,5],[62,3,62,5],[63,3,63,5],[64,3,64,5],[60,1,60,2],[65,1,65,2],[65,3,65,5],[61,1,61,2],[62,1,62,2],[63,1,63,2],[64,1,64,2],[71,1,71,5],[74,4,75,5],[96,4,96,5],[90,4,91,5],[74,1,75,3],[90,1,91,3],[86,1,86,3],[76,1,76,3],[85,1,85,3],[85,4,85,5],[77,4,77,5],[80,4,80,5],[77,1,77,3],[78,1,78,3],[80,1,80,3],[81,1,81,3],[83,1,83,3],[83,4,83,5],[66,1,66,2],[66,3,66,5],[103,1,103,3],[101,4,101,6],[102,4,102,6],[103,4,103,6],[104,1,104,3],[105,1,105,3],[112,4,112,7],[69,1,69,2],[69,3,69,5],[15,6,16,6],[163,1,163,4],[126,4,126,7],[127,4,127,7],[128,4,128,7],[102,1,102,3],[81,4,81,5],[82,4,82,5],[86,4,86,5],[125,4,125,7],[115,1,115,3],[97,4,97,5],[74,6,75,6],[74,7,75,7],[82,1,82,3],[109,1,109,3],[146,5,146,7],[147,1,147,2],[147,3,147,4],[147,5,147,7],[129,1,129,3],[137,4,137,7],[115,4,115,7],[101,1,101,3],[161,4,161,7],[151,1,151,2],[151,3,151,4],[151,5,151,7],[155,1,155,2],[155,3,155,4],[155,5,155,7],[156,1,156,2],[156,3,156,4],[156,5,156,7],[160,1,160,2],[160,3,160,4],[160,5,160,7],[152,4,152,7],[146,1,146,2],[146,3,146,4],[106,1,106,3],[107,1,107,3],[35,4,36,4],[119,4,119,7],[131,4,131,7],[140,4,140,7],[117,1,117,3],[117,4,117,7],[110,1,110,3],[111,1,111,3],[97,1,97,3],[128,1,128,3],[92,4,92,5],[93,1,93,3],[93,4,93,5],[92,1,92,3],[98,1,98,5],[94,1,94,3],[94,4,94,5],[95,1,95,3],[95,4,95,5],[96,1,96,3],[104,4,104,6],[105,4,105,6],[106,4,106,6],[107,4,107,6],[108,4,108,6],[109,4,109,6],[110,4,110,6],[111,4,111,6],[118,1,118,3],[118,4,118,7]]}
[null,null,"Relevé des dépenses afférentes à l'acte attributif"]
[]
[]
[null,null,null,null,"Type de relevé de dépenses : ","SOLDE"]
[]
[null,null,"Acronyme du projet : "]
[null,null,"Bénéficiaire de la convention : "]
[null,null,"N° de l'acte attributif : "]
[null,null,"Période du relevé de dépenses :",null,null,"Date début administrative",null,"Date fin scientifique"]
[]
[null,null,"Date du présent relevé : "]
[]
[null,null,"Catégorie de partenaire",null,null,null,"Coût complet",null,null,null,null,null,"Catégorie de partenaire"]
[null,null,null,null,null,null,null,null,null,null,null,null,"Divers privé"]
["RELEVE RECAPITULATIF DES DEPENSES PAR POSTES",null,null,null,null,null,null,null,null,null,null,null,"TPE / PME"]
[null,"Personnels ",null,null,"Matériels et instruments","Bâtiments et terrains","Prestations de service/DPI","Frais généraux non forfaitisés","Total",null,null,null,"Entreprise autre que TPE ou PME"]
[null,"Personnels permanents ","Personnels NON permanents avec financement ANR  ",null,null,null,null,null,null,null,null,null,"Association"]
[null,{"$f":"I55","v":0},{"$f":"I72","v":0},null,{"$f":"K88","v":0},{"$f":"K99","v":0},{"$f":"I113","v":0},{"$f":"I120","v":0},{"$f":"B18+C18+E18+F18+G18+H18","v":0}]
[]
[]
[]
[null,null,"Frais de personnel (Max 68%)",null,null,{"$f":"IF(E22>68%,\"MAX 68%\",E22*(B18+C18))","v":0},null,"Coût complet (€)",{"$f":"IF(OR(E22>68%,E24>7%),0,I18+F26)","v":0}]
[]
[null,null,"Autres dépenses(Max 7%)",null,null,{"$f":"IF(E24>7%,\"MAX 7%\",E24*(SUM(E18:H18)))","v":0},null,"Montant total des dépenses éligibles (€)",{"$f":"IF(I22=0,0,B18+C18+E18+F18+G18+H18+F26)","v":0}]
[]
[null,null,"Total des frais",null,null,{"$f":"IF(OR(F22=\"MAX 68%\",F24=\"MAX 7%\"),\"\",F22+F24)","v":0},null,"Taux d'aide demandé (%)"]
[]
[]
[]
[null,"Application du taux d'aide au montant total des dépenses éligibles (€)",null,null,null,{"$f":"IF(I24=\"\",\"\",I26*I24)","v":0},null,null,null,null,"OUI"]
[null,null,null,null,null,null,null,null,null,null,"NON"]
[]
[null,null,null,null,"dont",{"$f":"I141","v":0},"au titre de la facturation interne "]
[null,null,null,null,null,{"$f":"I132","v":0},"au titre de la facturation entre partenaires "]
[]
[null,null,null,null,"dont",{"$f":"I153","v":0},"au titre de la facturation liée à la publication scientifique"]
[null,null,null,null,null,{"$f":"I162","v":0},"au titre de la facturation liée aux données de la recherche"]
[]
[]
[]
["Détails des catégories de dépenses éligibles"]
[]
["Personnels permanents "]
[null,"Catégorie de personnel",null,"Nom / Prénom",null,null,"Coût mensuel","Personne.mois","Coût total"]
[null,"Chercheur",null,null,null,null,null,null,{"$f":"G45*H45","v":0}]
[null,"Ingénieur de recherche",null,null,null,null,null,null,{"$f":"G46*H46","v":0}]
[null,"Ingénieur d'étude",null,null,null,null,null,null,{"$f":"G47*H47","v":0}]
[null,"Technicien",null,null,null,null,null,null,{"$f":"G48*H48","v":0}]
[null,null,null,null,null,null,null,null,{"$f":"G49*H49","v":0}]
[null,null,null,null,null,null,null,null,0]
[null,null,null,null,null,null,null,null,0]
[null,null,null,null,null,null,null,null,0]
[null,null,null,null,null,null,null,null,0]
[null,"Autre",null,null,null,null,null,null,{"$f":"G54*H54","v":0}]
[null,"Total",null,null,null,null,{"$f":"SUM(G45:G54)","v":0},{"$f":"SUM(H45:H54)","v":0},{"$f":"SUM(I45:I54)","v":0}]
[]
[]
["Personnels NON permanents avec financement ANR  "]
[null,"Catégorie de personnel",null,"Nom / Prénom",null,null,"Coût mensuel","Personne.mois","Coût total"]
[null,"Chercheur",null,null,null,null,null,null,{"$f":"G60*H60","v":0}]
[null,"Ingénieur de recherche",null,null,null,null,null,null,0]
[null,"Ingénieur d'étude",null,null,null,null,null,null,0]
[null,"Technicien",null,null,null,null,null,null,0]
[null,"Doctorant",null,null,null,null,null,null,0]
[null,"Post doc",null,null,null,null,null,null,0]
[null,null,null,null,null,null,null,null,0]
[null,null,null,null,null,null,null,null,0]
[null,null,null,null,null,null,null,null,0]
[null,null,null,null,null,null,null,null,0]
[null,null,null,null,null,null,null,null,0]
[null,"Autre",null,null,null,null,null,null,0]
[null,"Total",null,null,null,null,{"$f":"SUM(G60:G71)","v":0},{"$f":"SUM(H60:H71)","v":0},{"$f":"SUM(I60:I71)","v":0}]
[]
["Matériels et instruments"]
[null,"Nature de dépenses",null,null,"Description des dépenses",null,"Montant (€)**","Date d'acquisition","Amortissement"]
[null,null,null,null,null,null,null,null,"Durée totale d'amortissement (mois)","Durée d'utilisation dans le projet (2) \n(mois)","Montant de l'amortissement (€)"]
[null,"Acquisitions",null,null,null,null,null,null,null,null,{"$f":"IF(I77=\"\",0,G77*(J77/I77))","v":0}]
[null,"Locations",null,null,null,null,null,null,null,null,0]
[null,"Consommables « scientifiques » (liés à l’utilisation des instruments et matériels)",null,null,null,null,null,null,null,null,0]
[null,"Coût d’adaptation ou d’évolution d’un matériel/instrument existant",null,null,null,null,null,null,null,null,0]
[null,"Coût de maintenance /révision/ entretien",null,null,null,null,null,null,null,null,0]
[null,"Coût de transport",null,null,null,null,null,null,null,null,0]
[null,"Coût d’installation",null,null,null,null,null,null,null,null,0]
[null,null,null,null,null,null,null,null,null,null,0]
[null,null,null,null,null,null,null,null,null,null,0]
[null,null,null,null,null,null,null,null,null,null,0]
[null,"Autres à préciser",null,null,null,null,null,null,null,null,0]
[null,"Total",null,null,null,null,{"$f":"SUM(G77:G87)","v":0},null,null,null,{"$f":"SUM(K77:K87)","v":0}]
[]
["Bâtiments et terrains"]
[null,"Nature de dépenses",null,null,"Description des dépenses",null,"Montant (€)**","Date d'acquisition","Amortissement"]
[null,null,null,null,null,null,null,null,"Durée totale d'amortissement (mois)","Durée d'utilisation dans le projet (2) \n(mois)","Montant de l'amortissement (€)"]
[null,"Location de nouveaux locaux/terrains non existants préalablement au projet parmi les bâtiments et terrains du bénéficiaire)",null,null,null,null,null,null,null,null,{"$f":"IF(I93=\"\",0,G93*(J93/I93))","v":0}]
[null,"Aménagement de locaux/terrains préexistants",null,null,null,null,null,null,null,null,{"$f":"IF(I94=\"\",0,G94*(J94/I94))","v":0}]
[null,null,null,null,null,null,null,null,null,null,{"$f":"IF(I95=\"\",0,G95*(J95/I95))","v":0}]
[null,null,null,null,null,null,null,null,null,null,0]
[null,null,null,null,null,null,null,null,null,null,0]
[null,"Autres à préciser",null,null,null,null,null,null,null,null,{"$f":"IF(I98=\"\",0,G98*(J98/I98))","v":0}]
[null,"Total",null,null,null,null,{"$f":"SUM(G93:G98)","v":0},null,null,null,{"$f":"SUM(K93:K98)","v":0}]
[]
["Prestations de service/DPI"]
[null,"Nom du fournisseur",null,null,"Description des prestations",null,null,"Date du service fait","Montant (€)**",{"$f":"IF(I113> F30*0.5,\"ALERTE : Plus de 50 % de l'aide calculée\",\"\")","v":""}]
[]
[]
[]
[]
[]
[]
[]
[]
[]
[]
[null,null,null,null,"Total",null,null,null,{"$f":"SUM(I103:I112)","v":0}]
[]
["Frais généraux non forfaitisés"]
[null,"Nature de dépenses",null,null,"Description des prestations",null,null,null,"Montant (€)**"]
[]
[]
[]
[null,null,null,null,"Total",null,null,null,{"$f":"SUM(I117:I119)","v":0}]
[]
[]
["La facturation entre partenaire et interne concernent toutes les catégories de dépenses à l'exception des dépenses de personnels."]
["Ces deux rubriques \"facturation\" sont des données récapitulatives et ne seront pas comptabilisées dans les dépenses du projet si elles sont déclarées uniquement ci-dessous."]
[null,"Facturation entre partenaire"]
[null,"Nom",null,null,"Prestations",null,null,null,"Montant (€)**"]
["Dont"]
[]
[]
[]
[]
[null,null,null,null,"Total",null,null,null,{"$f":"SUM(I127:I131)","v":0}]
[]
[null,"Facturation interne "]
[null,"Nom du partenaire",null,null,"Prestations",null,null,null,"Montant (€)**"]
[]
[]
[]
[]
[]
[null,null,null,null,"Total",null,null,null,{"$f":"SUM(I136:I140)","v":0}]
[]
["Ces deux rubriques \"facturation\" sont des données récapitulatives de dépenses déclarées dans les catégories de dépenses principales ci-dessus"]
["et ne seront pas comptabilisées dans les dépenses du projet si elles sont déclarées uniquement ci-dessous"]
[]
[null,"Facturation liée à la publication scientifique"]
[null,"Nom du fournisseur",null,"Nature de la dépense",null,"Description",null,null,"Montant (€)**"]
["Dont"]
[]
[]
[]
[]
[null,null,null,null,"Total",null,null,null,{"$f":"SUM(I148:I152)","v":0}]
[]
[null,"Facturation liée aux données de la recherche"]
[null,"Nom du fournisseur",null,"Nature de la dépense",null,"Description",null,null,"Montant (€)**"]
[]
[]
[]
[]
[]
[null,null,null,null,"Total",null,null,null,{"$f":"SUM(I157:I161)","v":0}]
[]
[null,"Signature du comptable ***\n\n\n\n\n\n\nNom, qualité et cachet du signataire",null,null,null,null,"Signature originale de la personne habilitée à représenter\njuridiquement le partenaire*\n\n\n\n\n\nNom et qualité du signataire\nCachet du partenaire"]
[]
[]
["NOTA : les documents justificatifs de dépenses sont conservés pendant 10 ans par le partenaire afin de pouvoir les présenter à tout contrôle de l'ANR."]
[null,"Toutes les factures seront à justifier en cas d'audit "]
["(*) Représentant légal ou personne ayant reçu délégation de signature du représentant légal. Dans ce cas, préciser : \"Pour (qualité du représentant légal) et par délégation\"."]
["(**)  Montant incluant la TVA non récupérable."]
["(***) La certification par le commissaire aux comptes, un expert-comptable si le bénéficiaire en est doté ou tout autre organisme de contrôle le cas échant peut être requise sur demande de l’ANR "]